bitfinex-derivatives/quotes_ETHF0:USTF0_20250420
["timestamp","ask_amount","ask_price","bid_price","bid_amount"]
[1745162540378,0.00952714,1574.6,1574.5,2.15351]
[1745162540577,1.27965714,1574.6,1574.5,5.0023]
[1745162541272,1.27965714,1574.6,1574.5,7.2303]
[1745162542671,0.00952714,1574.6,1574.5,8.50051]
[1745162542982,1.27965714,1574.6,1574.5,7.2303]
[1745162543483,0.00952714,1574.6,1574.5,8.50051]
[1745162543669,0.00952714,1574.6,1574.5,13.50051]
[1745162543874,0.00952714,1574.6,1574.5,16.70831]
[1745162544583,0.00952714,1574.6,1574.5,22.56031]
[1745162546784,4.47777,1574.8,1574.5,22.56031]
[1745162546785,9.1158,1575.4,1574.5,24.4655]
[1745162546976,2.0,1575.2,1575.1,1.26973]
[1745162547176,1.26965,1575.2,1575.1,0.8502]
[1745162547373,1.26965,1575.2,1575.1,1.7313]
[1745162548273,5.84392,1575.3,1575.1,3.001]
[1745162548585,2.0,1575.3,1575.2,1.26965]
[1745162548785,1.26947,1575.5,1575.2,3.2078]
[1745162548978,3.26947,1575.5,1575.3,1.2695]
[1745162549173,3.26947,1575.5,1575.3,5.3885]
[1745162549686,3.4149,1575.6,1575.4,1.26949]
[1745162549887,5.84368,1575.6,1575.4,5.28379]
[1745162550080,5.84368,1575.6,1575.5,0.8703]
[1745162550379,5.84368,1575.6,1575.5,3.0983]
[1745162550576,4.14508,1575.6,1575.5,3.0983]
[1745162550777,2.0,1575.6,1575.5,4.36771]
[1745162551285,6.18851,1575.8,1575.6,1.26933]
[1745162551484,2.0,1575.7,1575.6,5.38833]
[1745162551678,2.0,1575.7,1575.6,8.59613]
[1745162551986,8.87924,1575.9,1575.7,1.26925]
[1745162551987,2.11599,1575.9,1575.7,1.26925]
[1745162552187,2.0,1575.9,1575.7,4.3037]
[1745162552499,2.0,1575.9,1575.8,4.47697]
[1745162552883,3.26909,1575.9,1575.8,3.2078]
[1745162553483,1.26917,1575.8,1575.7,3.0345]
[1745162553682,2.92737,1575.8,1575.7,2.228]
[1745162553886,4.92737,1575.8,1575.7,2.228]
[1745162554187,1.26925,1575.7,1575.6,7.3268]
[1745162554487,6.63775,1575.7,1575.6,3.2078]
[1745162555673,2.0,1575.7,1575.6,4.47713]
[1745162555878,1.26919,1575.8,1575.6,4.47708]
[1745162556078,1.26919,1575.8,1575.7,4.118]
[1745162556687,3.26919,1575.8,1575.7,4.118]
[1745162557189,4.11439,1575.8,1575.7,6.346]
[1745162558092,4.11439,1575.8,1575.7,4.118]
[1745162558388,1.26933,1575.6,1575.5,9.97]
[1745162558590,5.79648,1575.7,1575.5,11.2394]
[1745162558884,3.6698,1575.6,1575.5,11.2394]
[1745162559095,3.6698,1575.6,1575.5,13.46741]
[1745162559485,2.0,1575.6,1575.5,15.13791]
[1745162560591,2.8574,1575.7,1575.5,15.13791]
[1745162560783,4.5133,1575.7,1575.6,1.6705]
[1745162560980,5.78255,1575.7,1575.6,1.6705]
[1745162561180,5.78255,1575.7,1575.6,2.93983]
[1745162561380,5.78255,1575.7,1575.6,1.6705]
[1745162562689,5.78255,1575.7,1575.6,2.93983]
[1745162562878,5.78255,1575.7,1575.6,3.82303]
[1745162563081,3.26925,1575.7,1575.6,3.82303]
[1745162563283,2.0,1575.7,1575.6,3.82303]
[1745162563588,2.5473,1575.9,1575.7,1.26925]
[1745162563783,3.26917,1575.8,1575.7,1.7391]
[1745162564087,4.97037,1575.8,1575.7,3.9671]
[1745162566193,5.82947,1575.8,1575.7,3.9671]
[1745162567395,5.82947,1575.8,1575.7,7.1749]
[1745162569397,5.82947,1575.8,1575.7,5.4358]
[1745162570106,5.82947,1575.8,1575.7,3.2078]
[1745162573400,5.82947,1575.8,1575.7,5.4358]
[1745162574799,10.82947,1575.8,1575.7,5.4358]
[1745162575105,5.82947,1575.8,1575.7,3.2078]
[1745162577007,1.26925,1575.7,1575.6,1.6536]
[1745162577306,4.93245,1575.7,1575.6,4.8614]
[1745162579908,4.93245,1575.7,1575.6,5.6875]
[1745162580110,3.6632,1575.7,1575.6,6.95683]
[1745162580607,4.93245,1575.7,1575.6,6.95683]
[1745162580811,3.26925,1575.7,1575.6,6.95683]
[1745162581004,3.26925,1575.7,1575.6,5.6875]
[1745162581411,5.04845,1575.7,1575.6,3.2078]
[1745162582304,2.0,1575.7,1575.6,7.01233]
[1745162582522,2.0,1575.7,1575.6,7.84313]
[1745162583111,3.26925,1575.7,1575.6,7.84313]
[1745162584315,2.0,1575.7,1575.6,7.84313]
[1745162584606,3.26925,1575.7,1575.6,7.84313]
[1745162584908,3.26925,1575.7,1575.6,6.5738]
[1745162586515,3.26925,1575.7,1575.6,7.84313]
[1745162587605,3.26925,1575.7,1575.6,6.5738]
[1745162587804,3.26925,1575.7,1575.6,3.366]
[1745162588004,3.26925,1575.7,1575.6,7.84313]
[1745162588909,2.0,1575.7,1575.6,7.84313]
[1745162589112,2.0,1575.8,1575.7,1.26925]
[1745162589415,1.26913,1575.9,1575.8,1.26917]
[1745162589614,1.26913,1575.9,1575.8,5.46117]
[1745162590612,1.26913,1575.9,1575.8,7.10127]
[1745162591715,1.26909,1575.9,1575.8,7.10127]
[1745162592715,1.26909,1575.9,1575.8,5.8321]
[1745162592911,1.6585,1576.0,1575.8,7.10127]
[1745162593117,4.92751,1576.0,1575.9,1.6768]
[1745162594116,4.92751,1576.0,1575.9,3.9048]
[1745162595113,4.92751,1576.0,1575.9,1.6768]
[1745162599725,4.92751,1576.0,1575.9,2.5034]
[1745162599925,3.26901,1576.0,1575.9,2.5034]
[1745162600128,2.0,1576.0,1575.9,10.07319]
[1745162601227,3.26901,1576.0,1575.9,10.07319]
[1745162605323,3.26901,1576.0,1575.9,8.8041]
[1745162605622,5.05271,1576.0,1575.9,7.9392]
[1745162606219,5.05271,1576.0,1575.9,5.4358]
[1745162606529,10.05271,1576.0,1575.9,2.228]
[1745162607123,1.26909,1575.9,1575.8,0.00952714]
[1745162607428,5.87099,1575.9,1575.8,0.00952714]
[1745162609931,10.88633343,1575.9,1575.8,0.00952714]
[1745162617236,10.077025,1575.9,1575.8,0.00952714]
[1745162629855,10.88632058,1575.9,1575.8,0.00952714]
[1745162635555,15.88632058,1575.9,1575.8,7.14e-06]
[1745162636151,18.11432058,1575.9,1575.8,7.14e-06]
[1745162636647,1.26941,1575.5,1575.4,0.8215]
[1745162636852,1.26949,1575.4,1575.3,5.8277]
[1745162637052,6.57309,1575.4,1575.3,1.7027]
[1745162638357,1.26965,1575.2,1575.1,7.3328]
[1745162638550,3.26965,1575.2,1575.1,9.0355]
[1745162640669,3.26965,1575.2,1575.1,1.7027]
[1745162641165,5.00505,1575.2,1575.1,1.7027]
[1745162643760,3.26965,1575.2,1575.1,1.7027]
[1745162645465,1.26981,1575.0,1574.9,7.3338]
[1745162645662,3.26981,1575.0,1574.9,7.3338]
[1745162645866,3.26981,1575.0,1574.9,3.2078]
[1745162646165,1.26981,1575.0,1574.9,1.6707]
[1745162649181,1.26981,1575.0,1574.9,3.8987]
[1745162654176,1.26981,1575.0,1574.9,1.6707]
[1745162655175,1.26981,1575.0,1574.9,3.8987]
[1745162663178,3.26981,1575.0,1574.9,3.8987]
[1745162664678,2.0,1575.0,1574.9,3.8987]
[1745162664979,1.26981,1575.0,1574.9,8.37639]
[1745162665679,1.26981,1575.0,1574.9,7.1065]
[1745162670476,3.26981,1575.0,1574.9,7.1065]
[1745162681898,3.26981,1575.0,1574.9,11.2075]
[1745162682992,5.01531,1575.0,1574.9,11.2075]
[1745162683291,5.01531,1575.0,1574.9,7.9997]
[1745162683495,5.01531,1575.0,1574.9,11.2075]
[1745162684002,5.01531,1575.0,1574.9,7.9997]
[1745162685205,5.01531,1575.0,1574.9,11.2075]
[1745162691211,3.26981,1575.0,1574.9,11.2075]
[1745162692411,4.21556214,1575.1,1575.0,1.26981]
[1745162692612,5.48529214,1575.1,1575.0,2.4912]
[1745162692802,4.21556214,1575.1,1575.0,3.76101]
[1745162693313,4.21556214,1575.1,1575.0,5.98901]
[1745162695712,5.48529214,1575.1,1575.0,5.98901]
[1745162695912,5.48529214,1575.1,1575.0,4.7192]
[1745162696313,4.21556214,1575.1,1575.0,5.98901]
[1745162696913,0.00952714,1575.1,1575.0,5.98901]
[1745162697108,1.27925714,1575.1,1575.0,5.98901]
[1745162702516,1.27925714,1575.1,1575.0,9.19681]
[1745162704118,1.27925714,1575.1,1575.0,5.98901]
[1745162704319,1.27925714,1575.1,1575.0,9.19681]
[1745162705317,1.27925714,1575.1,1575.0,7.927]
[1745162705516,3.04955714,1575.1,1575.0,7.927]
[1745162706118,3.04955714,1575.1,1575.0,9.19681]
[1745162708013,3.04955714,1575.1,1575.0,5.4358]
[1745162708219,5.04955714,1575.1,1575.0,2.228]
[1745162712421,8.77982714,1575.1,1574.8,8.45338769]
[1745162712614,1.26989,1574.9,1574.8,8.45338769]
[1745162712921,1.26997,1574.8,1574.7,12.65060659]
[1745162713123,6.47777,1574.8,1574.7,9.31823659]
[1745162713322,1.27005,1574.7,1574.6,16.7550315]
[1745162713623,3.27005,1574.7,1574.6,13.0430015]
[1745162713819,1.27013,1574.6,1574.5,13.0430015]
[1745162714120,10.54993,1574.6,1574.5,13.0430015]
[1745162714318,15.54993,1574.6,1574.5,13.0430015]
[1745162716123,11.47793,1574.6,1574.5,15.2710015]
[1745162716822,13.08973,1574.6,1574.5,15.2710015]
[1745162717226,13.08973,1574.6,1574.5,13.0430015]
[1745162717425,8.08973,1574.6,1574.5,13.0430015]
[1745162718230,8.08973,1574.6,1574.5,15.2710015]
[1745162720131,8.08973,1574.6,1574.5,13.0430015]
[1745162720430,1.27029,1574.4,1574.3,1.649]
[1745162720727,2.0,1574.3,1573.7,3.2078]
[1745162720921,2.0,1574.3,1573.7,5.7116]
[1745162720922,1.27078,1573.8,1573.7,5.7116]
[1745162721625,1.27076,1573.9,1573.7,5.7116]
[1745162721830,3.28028714,1573.9,1573.8,1.7184]
[1745162722217,1.27078,1573.8,1573.7,2.228]
[1745162722423,3.27078,1573.8,1573.7,4.7649]
[1745162722634,2.0,1573.8,1573.7,6.86336]
[1745162722823,0.00952714,1573.9,1573.8,1.27078]
[1745162723127,0.00952714,1573.9,1573.8,6.7184]
[1745162723451,0.00952714,1573.9,1573.8,1.7184]
[1745162723828,0.00952714,1573.9,1573.8,2.98918]
[1745162724830,1.28022714,1573.9,1573.8,1.7184]
[1745162728533,0.00952714,1573.9,1573.8,4.9262]
[1745162728724,0.00952714,1573.9,1573.8,6.19698]
[1745162731935,3.2078,1574.5,1574.2,1.27041]
[1745162732239,1.27037,1574.4,1574.3,3.4386]
[1745162732429,1.27037,1574.4,1574.3,1.6963]
[1745162732626,2.94028,1574.5,1574.3,2.96668]
[1745162732938,1.27023,1574.5,1574.3,6.17442]
[1745162733140,5.476235,1574.6,1574.4,1.27029]
[1745162733437,1.27021,1574.5,1574.3,8.9811]
[1745162733636,1.27029,1574.4,1574.3,10.25143]
[1745162733841,4.206035,1574.6,1574.3,10.25143]
[1745162734137,1.27023,1574.5,1574.3,10.25143]
[1745162734546,1.27023,1574.5,1574.4,1.27029]
[1745162734839,1.27023,1574.5,1574.3,10.25142]
[1745162735033,1.27023,1574.5,1574.4,2.228]
[1745162737145,1.27021,1574.5,1574.4,2.228]
[1745162737844,1.27019,1574.6,1574.4,3.49829]
[1745162738649,3.2078,1574.7,1574.4,2.228]
[1745162738838,1.27021,1574.5,1574.4,2.228]
[1745162743345,1.27029,1574.4,1574.3,1.6963]
[1745162749658,1.27029,1574.4,1574.3,3.4594]
[1745162752457,1.27029,1574.4,1574.3,3.2078]
[1745162752658,1.27038,1574.3,1574.2,2.23752714]
[1745162763080,1.27038,1574.3,1574.2,3.05532714]
[1745162763377,4.47818,1574.3,1574.2,2.23752714]
[1745162763777,6.20238,1574.3,1574.2,2.23752714]
[1745162765976,10.408415,1574.3,1574.2,2.23752714]
[1745162769281,10.408415,1574.3,1574.2,0.00952714]
[1745162773395,8.684215,1574.3,1574.2,0.00952714]
[1745162773590,5.476415,1574.3,1574.2,0.00952714]
[1745162773786,5.476415,1574.3,1574.2,1.74902714]
[1745162774183,5.476415,1574.3,1574.2,3.97702714]
[1745162779004,4.206035,1574.3,1574.2,5.24748714]
[1745162779194,5.476415,1574.3,1574.2,5.24748714]
[1745162779393,4.206035,1574.3,1574.2,5.24748714]
[1745162779596,4.9751068,1574.4,1574.3,1.27038]
[1745162779790,4.9751068,1574.4,1574.3,6.17688]
[1745162779990,4.9751068,1574.4,1574.3,11.17688]
[1745162783003,4.9751068,1574.4,1574.3,12.86968]
[1745162785702,1.27011,1574.7,1574.5,1.27019]
[1745162786001,1.27011,1574.7,1574.6,3.4154]
[1745162788404,1.27011,1574.7,1574.6,4.68553]
[1745162791308,1.27011,1574.7,1574.6,3.4154]
[1745162791523,1.27011,1574.7,1574.6,4.68553]
[1745162791706,1.7672,1574.8,1574.6,4.68553]
[1745162791910,3.03717,1574.8,1574.7,1.6708]
[1745162794306,3.03717,1574.8,1574.7,3.8988]
[1745162796109,12.91942638,1575.1,1574.7,3.8988]
[1745162796318,2.0,1575.0,1574.9,4.47762]
[1745162796604,8.44186638,1575.1,1575.0,1.26981]
[1745162796909,8.44186638,1575.1,1575.0,2.4495]
[1745162797203,8.44186638,1575.1,1575.0,5.94731]
[1745162797908,8.44186638,1575.2,1575.0,5.94731]
[1745162798104,8.44186638,1575.2,1575.1,1.6087]
[1745162798306,9.71151638,1575.2,1575.1,1.6087]
[1745162799911,11.34871638,1575.2,1575.1,1.6087]
[1745162800411,9.71151638,1575.2,1575.1,1.6087]
[1745162801417,8.44186638,1575.2,1575.1,2.87843]
[1745162801604,1.6674,1575.3,1575.1,6.08623]
[1745162801807,2.93702,1575.3,1575.2,1.6692]
[1745162804011,1.6674,1575.3,1575.0,0.82642714]
[1745162804206,1.26973,1575.1,1575.0,1.67042714]
[1745162804706,2.13143,1575.1,1575.0,1.67042714]
[1745162805213,2.13143,1575.1,1575.0,3.89842714]
[1745162805417,0.8617,1575.1,1575.0,5.16823714]
[1745162806610,2.47,1575.1,1575.0,5.16823714]
[1745162807411,1.6083,1575.1,1575.0,5.16823714]
[1745162807805,2.11811,1575.2,1575.0,5.16823714]
[1745162808011,3.72881,1575.2,1575.1,1.7817]
[1745162808213,2.88041,1575.2,1575.1,3.05143]
[1745162808405,2.88035,1575.2,1575.1,1.7817]
[1745162808605,2.88035,1575.2,1575.1,3.05143]
[1745162808807,1.6107,1575.2,1575.1,3.05143]
[1745162809913,2.88035,1575.2,1575.1,3.05143]
[1745162810113,2.88035,1575.2,1575.1,1.7817]
[1745162810302,2.88035,1575.2,1575.1,3.05143]
[1745162810506,2.88035,1575.2,1575.1,1.7817]
[1745162810718,1.26973,1575.1,1575.0,2.23752714]
[1745162810910,3.88723,1575.1,1575.0,2.23752714]
[1745162811609,3.88723,1575.1,1575.0,3.91702714]
[1745162812120,3.88723,1575.1,1575.0,1.68902714]
[1745162812817,1.26971,1575.2,1575.0,2.95883714]
[1745162813116,1.26971,1575.2,1575.1,1.7144]
[1745162813319,3.02751,1575.2,1575.1,1.7144]
[1745162814112,1.26971,1575.2,1575.1,1.7144]
[1745162814514,3.2078,1575.5,1575.1,1.7144]
[1745162814721,1.26941,1575.5,1575.3,4.47731]
[1745162814916,3.02718,1575.6,1575.4,2.98389]
[1745162815109,1.26933,1575.6,1575.5,2.5513]
[1745162815913,3.02713,1575.6,1575.5,2.5513]
[1745162820117,3.02713,1575.6,1575.5,1.7144]
[1745162820722,1.26941,1575.5,1575.4,4.083]
[1745162821022,3.03891,1575.5,1575.4,5.7355]
[1745162822031,3.03891,1575.5,1575.4,1.6525]
[1745162822515,6.24671,1575.5,1575.4,1.6525]
[1745162823525,1.26957,1575.3,1575.2,4.9489]
[1745162823712,1.26957,1575.3,1575.2,6.6787]
[1745162824215,1.26957,1575.3,1575.2,1.7298]
[1745162824422,4.94,1575.3,1575.0,4.09152714]
[1745162824621,1.26973,1575.1,1575.0,4.09152714]
[1745162824924,1.26973,1575.1,1575.0,1.73932714]
[1745162831124,1.26973,1575.1,1575.0,3.96732714]
[1745162832132,2.97273,1575.1,1575.0,1.73932714]
[1745162833732,1.26973,1575.1,1575.0,1.73932714]
[1745162834126,3.8136,1575.2,1575.0,1.73932714]
[1745162834328,1.26973,1575.1,1575.0,1.73932714]
[1745162835439,11.5933,1575.3,1575.0,1.73932714]
[1745162835628,2.0,1575.2,1575.1,4.47753]
[1745162836438,3.26965,1575.2,1575.1,4.47753]
[1745162836736,3.26965,1575.2,1575.1,3.2078]
[1745162837238,3.26965,1575.2,1575.1,4.9218]
[1745162837740,1.26965,1575.2,1575.1,4.9218]
[1745162838630,1.26965,1575.2,1575.1,1.714]
[1745162839742,1.26973,1575.1,1575.0,0.00952714]
[1745162840040,4.65473,1575.1,1575.0,0.00952714]
[1745162841139,2.93813,1575.1,1575.0,0.00952714]
[1745162842141,1.26973,1575.1,1575.0,0.00952714]
[1745162846249,1.26973,1575.1,1575.0,2.56002714]
[1745162848548,1.26973,1575.1,1575.0,3.40712714]
[1745162852248,3.03583,1575.1,1575.0,3.40712714]
[1745162852640,3.03583,1575.1,1575.0,2.56002714]
[1745162854851,1.26973,1575.1,1575.0,2.56002714]
[1745162855244,1.26973,1575.1,1575.0,4.78802714]
[1745162856362,2.91553,1575.1,1575.0,4.78802714]
[1745162856544,3.73813,1575.1,1575.0,4.78802714]
[1745162856851,3.73813,1575.1,1575.0,3.96282714]
[1745162857148,6.59793,1575.1,1575.0,0.00952714]
[1745162858155,8.82593,1575.1,1575.0,0.00952714]
[1745162858653,5.49773,1575.1,1575.0,0.00952714]
[1745162858857,7.93223,1575.1,1575.0,0.00952714]
[1745162859153,5.70423,1575.1,1575.0,0.00952714]
[1745162860557,12.81914099,1575.1,1575.0,0.00952714]
[1745162867159,18.72714099,1575.1,1575.0,0.00952714]
[1745162868054,21.93494099,1575.1,1575.0,0.00952714]
[1745162870061,24.16294099,1575.1,1575.0,0.00952714]
[1745162871164,21.93494099,1575.1,1575.0,0.00952714]
[1745162872359,32.86944513,1575.1,1575.0,0.00952714]
[1745162873563,39.77412513,1575.1,1574.7,0.8891]
[1745162873763,1.27005,1574.7,1574.6,4.9028]
[1745162874067,4.47785,1574.7,1574.6,0.8138]
[1745162874768,6.11165,1574.7,1574.6,0.8138]
[1745162876264,1.27021,1574.5,1574.4,4.9273]
[1745162876564,1.27021,1574.5,1574.4,1.7429]
[1745162877458,2.94641,1574.5,1574.4,1.7429]
[1745162879370,6.15421,1574.5,1574.4,1.7429]
[1745162880570,1.27029,1574.4,1574.3,1.6672]
[1745162880772,2.92009,1574.4,1574.3,1.6672]
[1745162881469,1.27054,1574.1,1574.0,7.2828]
[1745162881870,1.27054,1574.1,1574.0,12.2828]
[1745162883576,1.27054,1574.1,1574.0,7.2828]
[1745162884473,1.27054,1574.1,1574.0,4.075]
[1745162884784,1.27062,1574.0,1573.9,1.6909]
[1745162884978,3.03382,1574.0,1573.9,1.6909]
[1745162885272,1.27086,1573.7,1573.6,8.4603318]
[1745162885576,1.27086,1573.7,1573.6,11.8760318]
[1745162885977,1.27086,1573.7,1573.6,3.4157]
[1745162886168,1.2711,1573.4,1573.3,11.6681318]
[1745162886575,1.2711,1573.4,1573.3,13.4327318]
[1745162887075,1.27103,1573.5,1573.3,13.4327318]
[1745162887281,1.27103,1573.5,1573.4,2.644]
[1745162887282,1.27102,1573.5,1573.4,2.644]
[1745162887482,3.0474,1573.4,1573.3,8.4603318]
[1745162887667,5.0474,1573.4,1573.3,8.4603318]
[1745162888071,5.0474,1573.4,1573.3,10.2249318]
[1745162888272,5.0474,1573.4,1573.3,8.4603318]
[1745162889173,3.2711,1573.4,1573.3,8.4603318]
[1745162889373,1.2711,1573.4,1573.3,10.1419318]
[1745162889573,5.908,1573.6,1573.3,19.2179318]
[1745162889779,1.27109,1573.5,1573.4,1.6816]
[1745162890080,1.27093,1573.7,1573.4,1.6816]
[1745162890275,4.47882,1573.5,1573.4,2.228]
[1745162890478,6.47882,1573.5,1573.4,2.228]
[1745162890883,8.17932,1573.5,1573.4,2.228]
[1745162891188,8.17932,1573.5,1573.4,0.8584]
[1745162891387,1.2711,1573.4,1573.3,8.4603318]
[1745162891885,1.2711,1573.4,1573.3,10.1419318]
[1745162892675,1.2711,1573.4,1573.3,1.6816]
[1745162893279,1.27107,1573.5,1573.3,6.6816]
[1745162893590,1.27107,1573.5,1573.4,2.4992]
[1745162894080,1.27107,1573.5,1573.4,4.7272]
[1745162896191,1.27107,1573.5,1573.4,2.4992]
[1745162896597,1.27107,1573.5,1573.2,4.7054]
[1745162896598,1.27118,1573.3,1573.2,4.7054]
[1745162896783,1.27118,1573.3,1573.2,3.8788]
[1745162899088,3.04358,1573.3,1573.2,1.6508]
[1745162900392,0.00952714,1573.4,1573.2,1.6508]
[1745162900790,1.28069714,1573.4,1573.2,1.6508]
[1745162900990,1.28067714,1573.4,1573.2,5.7288]
[1745162901190,1.27118,1573.3,1573.2,7.9568]
[1745162901887,1.27118,1573.3,1573.2,3.8788]
[1745162902493,0.00952714,1573.4,1573.2,3.8788]
[1745162902893,1.28065714,1573.4,1573.2,3.8788]
[1745162903294,1.27118,1573.3,1573.2,3.8788]
[1745162904599,2.98908714,1573.4,1573.2,3.8788]
[1745162905001,1.27118,1573.3,1573.2,3.8788]
[1745162905201,1.27118,1573.3,1573.2,1.6508]
[1745162906202,3.04888,1573.3,1573.2,3.8788]
[1745162907202,1.28068714,1573.4,1573.2,1.6508]
[1745162907605,1.27118,1573.3,1573.2,1.6508]
[1745162907795,2.98627714,1573.4,1573.2,1.6508]
[1745162908302,1.27118,1573.3,1573.2,1.6508]
[1745162908913,2.98628714,1573.4,1573.2,1.6508]
[1745162909115,0.00952714,1573.4,1573.2,3.8788]
[1745162909416,0.00952714,1573.4,1573.3,1.27118]
[1745162909715,1.2709,1573.7,1573.4,1.27107]
[1745162909916,1.2709,1573.7,1573.5,2.5814]
[1745162910216,1.27094,1573.6,1573.5,3.9098]
[1745162910517,3.00844,1573.6,1573.5,3.9098]
[1745162910714,3.00844,1573.6,1573.5,5.6949]
[1745162911119,3.00844,1573.6,1573.5,3.4669]
[1745162912418,6.21624,1573.6,1573.5,3.4669]
[1745162914909,6.21624,1573.6,1573.5,1.6818]
[1745162915115,1.27107,1573.5,1573.3,4.8195]
[1745162915315,2.89167,1573.5,1573.4,3.2511]
[1745162915823,4.47879,1573.6,1573.4,3.2511]
[1745162916016,1.27099,1573.6,1573.5,1.6117]
[1745162916321,1.27094,1573.6,1573.5,1.6117]
[1745162917324,2.89152,1573.7,1573.5,1.6117]
[1745162917820,1.6206,1573.7,1573.5,1.6117]
[1745162918016,1.27094,1573.6,1573.5,1.6117]
[1745162918819,3.2078,1573.8,1573.5,1.6117]
[1745162919027,2.90036,1573.7,1573.5,1.6117]
[1745162919522,1.27094,1573.6,1573.5,1.6117]
[1745162923836,2.9004,1573.7,1573.5,1.6117]
[1745162924035,1.6295,1573.7,1573.5,1.6117]
[1745162924235,2.90041,1573.7,1573.5,1.6117]
[1745162925137,2.90041,1573.7,1573.5,3.8397]
[1745162925535,2.90041,1573.7,1573.6,1.6435]
[1745162925928,1.27094,1573.6,1573.5,2.228]
[1745162926230,1.27094,1573.6,1573.4,1.27109]
[1745162926430,2.98804,1573.6,1573.5,0.862]
[1745162926632,2.98804,1573.6,1573.5,1.7464]
[1745162927130,2.98804,1573.6,1573.5,3.3899]
[1745162927332,1.27102,1573.5,1573.3,8.64194]
[1745162927632,1.27102,1573.5,1573.4,3.3899]
[1745162928131,1.27102,1573.5,1573.4,3.9744]
[1745162928329,1.27102,1573.5,1573.4,2.228]
[1745162928729,2.97692,1573.5,1573.4,2.228]
[1745162929125,1.27118,1573.3,1573.2,5.7967]
[1745162929729,2.97708,1573.3,1573.2,5.7967]
[1745162930138,1.27126,1573.2,1573.1,4.8184]
[1745162930332,2.97716,1573.2,1573.1,3.2078]
[1745162931432,1.27134,1573.1,1573.0,4.9857]
[1745162931633,2.95614,1573.1,1573.0,4.9857]
[1745162932331,2.95614,1573.1,1573.0,8.9574]
[1745162933141,2.95614,1573.1,1573.0,6.7294]
[1745162934042,2.95614,1573.1,1573.0,4.9857]
[1745162934237,2.95614,1573.1,1573.0,7.2137]
[1745162934935,2.95614,1573.1,1573.0,8.9918]
[1745162938138,2.95614,1573.1,1573.0,6.7638]
[1745162938338,1.27134,1573.1,1573.0,6.7638]
[1745162938538,12.14319666,1573.3,1573.0,8.03521]
[1745162938738,1.27128,1573.2,1573.1,2.5474]
[1745162938935,1.27128,1573.2,1573.1,5.7552]
[1745162942852,7.10415654,1573.3,1573.1,5.7552]
[1745162943150,7.10415654,1573.3,1573.2,1.7369]
[1745162944346,7.10415654,1573.3,1573.2,3.9649]
[1745162945747,2.94465,1573.3,1573.2,3.9649]
[1745162948052,2.94465,1573.3,1573.2,2.228]
[1745162948752,2.94465,1573.3,1573.2,3.9098]
[1745162949947,4.15950654,1573.4,1573.2,3.9098]
[1745162950259,5.43060654,1573.4,1573.3,2.5843]
[1745162950552,7.10920654,1573.4,1573.3,2.5843]
[1745162950752,7.10920654,1573.4,1573.3,0.8295]
[1745162952752,2.9497,1573.4,1573.3,0.8295]
[1745162954355,2.9497,1573.4,1573.3,2.5456]
[1745162954653,1.2711,1573.4,1573.3,2.5456]
[1745162954853,2.9933,1573.4,1573.3,2.5456]
[1745162956451,5.43057654,1573.5,1573.3,7.02457]
[1745162956754,7.06307654,1573.5,1573.4,2.4382]
[1745162957256,7.06307654,1573.5,1573.4,4.6662]
[1745162959160,5.79200654,1573.5,1573.4,5.9373]
[1745162959357,4.15950654,1573.5,1573.4,10.9373]
[1745162960960,4.15950654,1573.6,1573.5,1.27102]
[1745162961261,4.15950654,1573.6,1573.5,8.36622]
[1745162961460,4.15950654,1573.6,1573.5,19.21822]
[1745162961962,1e-08,1573.6,1573.5,19.21822]
[1745162962352,4.17315881,1573.7,1573.6,1.27094]
[1745162962552,4.17315881,1573.7,1573.6,13.80934]
[1745162962759,4.17315881,1573.7,1573.6,18.80934]
[1745162964168,4.47823,1574.3,1573.7,3.17716]
[1745162964366,3.04996,1574.2,1574.0,1.27055]
[1745162964564,3.04996,1574.2,1574.1,0.8562]
[1745162969671,1.7795,1574.2,1574.1,0.8562]
[1745162969971,3.04997,1574.2,1574.0,7.95265]
[1745162970366,3.2078,1574.3,1574.0,7.95265]
[1745162970367,1.6772,1574.1,1574.0,7.95265]
[1745162970966,1.6772,1574.1,1574.0,4.171]
[1745162971167,4.885,1574.1,1573.8,4.17]
[1745162971373,1.2707,1573.9,1573.8,4.17]
[1745162971671,4.75568,1574.0,1573.8,4.17]
[1745162971870,1.2707,1573.9,1573.8,4.17]
[1745162972067,3.0569,1573.9,1573.8,4.17]
[1745162972575,1.7862,1573.9,1573.8,5.44078]
[1745162973064,1.7862,1573.9,1573.8,7.95098]
[1745162977970,3.0569,1573.9,1573.8,7.95098]
[1745162979972,1.7862,1573.9,1573.8,7.95098]
[1745162981274,3.0569,1573.9,1573.8,7.95098]
[1745162981468,1.7862,1573.9,1573.8,7.95098]
[1745162982176,3.0569,1573.9,1573.8,7.95098]
[1745162982473,1.7862,1573.9,1573.8,7.95098]
[1745162985079,3.0569,1573.9,1573.8,7.95098]
[1745162985480,1.27078,1573.8,1573.7,3.2078]
[1745162985675,2.90008,1573.8,1573.7,3.2078]
[1745162985882,1.27086,1573.7,1573.6,4.17]
[1745162986075,4.77066,1573.7,1573.6,4.17]
[1745162986479,1.27094,1573.6,1573.5,4.47881]
[1745162986668,3.00324,1573.6,1573.5,4.47881]
[1745162987471,1.7323,1573.6,1573.5,4.47881]
[1745162988181,1.7323,1573.6,1573.5,6.70681]
[1745162988378,1.7323,1573.6,1573.5,8.45271]
[1745162988877,1.7323,1573.6,1573.5,5.4358]
[1745162989078,3.00324,1573.6,1573.5,3.2078]
[1745162990483,3.00324,1573.6,1573.5,4.47882]
[1745162990779,3.00324,1573.6,1573.5,3.2078]